[Event "Titled Tuesday Blitz June 29 2021"]
[White "731291"]
[Black "TanitoluwaAps116"]
[WhiteElo "2661"]
[BlackElo "2353"]
[Result "1-0"]
[Round "01"]
[TimeControl "180+1"]
[Date "2021.06.29"]
[WhiteClock "0:00:08"]
[BlackClock "0:00:01"]

1. e4 {[%clk 0:00:47]}  c5 {[%clk 0:02:57]} 2. Nc3 {[%clk 0:00:45]}  Nc6 {[%clk 0:02:55]} 3. Bb5 {[%clk 0:00:35]}  g6 {[%clk 0:02:41]} 4. h4 {[%clk 0:00:34]}  h5 {[%clk 0:02:35]} 5. d3 {[%clk 0:00:31]}  Bg7 {[%clk 0:02:35]} 6. Bg5 {[%clk 0:00:31]}  d6 {[%clk 0:02:36]} 7. Nge2 {[%clk 0:00:29]}  a6 {[%clk 0:02:36]} 8. Bxc6+ {[%clk 0:00:29]}  bxc6 {[%clk 0:02:36]} 9. Qd2 {[%clk 0:00:29]}  Rb8 {[%clk 0:02:36]} 10. b3 {[%clk 0:00:29]}  Nf6 {[%clk 0:02:31]} 11. O-O {[%clk 0:00:27]}  Qa5 {[%clk 0:02:09]} 12. Rad1 {[%clk 0:00:23]}  Qb6 {[%clk 0:01:37]} 13. Rfe1 {[%clk 0:00:23]}  Bd7 {[%clk 0:01:16]} 14. Ng3 {[%clk 0:00:20]}  Ng4 {[%clk 0:01:03]} 15. Nce2 {[%clk 0:00:12]}  f6 {[%clk 0:00:45]} 16. Bf4 {[%clk 0:00:11]}  e5 {[%clk 0:00:45]} 17. Be3 {[%clk 0:00:12]}  Qc7 {[%clk 0:00:44]} 18. c3 {[%clk 0:00:11]}  Nxe3 {[%clk 0:00:44]} 19. Qxe3 {[%clk 0:00:11]}  Bh6 {[%clk 0:00:44]} 20. Qf3 {[%clk 0:00:11]}  O-O {[%clk 0:00:32]} 21. d4 {[%clk 0:00:11]}  c4 {[%clk 0:00:25]} 22. bxc4 {[%clk 0:00:11]}  Rb2 {[%clk 0:00:25]} 23. Qd3 {[%clk 0:00:11]}  Be6 {[%clk 0:00:22]} 24. d5 {[%clk 0:00:10]}  cxd5 {[%clk 0:00:22]} 25. cxd5 {[%clk 0:00:10]}  Bd7 {[%clk 0:00:22]} 26. Qxa6 {[%clk 0:00:09]}  Bb5 {[%clk 0:00:22]} 27. Qa3 {[%clk 0:00:09]}  Rc2 {[%clk 0:00:08]} 28. Qb3 {[%clk 0:00:09]}  Bxe2 {[%clk 0:00:07]} 29. Qxc2 {[%clk 0:00:08]}  Bxd1 {[%clk 0:00:07]} 30. Rxd1 {[%clk 0:00:09]}  Rc8 {[%clk 0:00:07]} 31. Rd3 {[%clk 0:00:08]}  Bf4 {[%clk 0:00:07]} 32. Ne2 {[%clk 0:00:08]}  Bh6 {[%clk 0:00:08]} 33. g3 {[%clk 0:00:08]}  Qc4 {[%clk 0:00:09]} 34. Rf3 {[%clk 0:00:08]}  Bg7 {[%clk 0:00:08]} 35. Kg2 {[%clk 0:00:09]}  f5 {[%clk 0:00:09]} 36. exf5 {[%clk 0:00:07]}  e4 {[%clk 0:00:09]} 37. Rf4 {[%clk 0:00:07]}  Be5 {[%clk 0:00:09]} 38. Rxe4 {[%clk 0:00:07]}  Qxd5 {[%clk 0:00:09]} 39. f3 {[%clk 0:00:07]}  gxf5 {[%clk 0:00:09]} 40. Nf4 {[%clk 0:00:06]}  Qc6 {[%clk 0:00:06]} 41. Qb3+ {[%clk 0:00:06]}  Kg7 {[%clk 0:00:06]} 42. Rb4 {[%clk 0:00:06]}  Qxc3 {[%clk 0:00:06]} 43. Rb7+ {[%clk 0:00:06]}  Kh6 {[%clk 0:00:05]} 44. Qe6+ {[%clk 0:00:06]}  Bf6 {[%clk 0:00:05]} 45. Qxf5 {[%clk 0:00:06]}  Qc2+ {[%clk 0:00:06]} 46. Qxc2 {[%clk 0:00:06]}  Rxc2+ {[%clk 0:00:07]} 47. Kh3 {[%clk 0:00:07]}  Rxa2 {[%clk 0:00:08]} 48. Rd7 {[%clk 0:00:07]}  Be5 {[%clk 0:00:08]} 49. Nd3 {[%clk 0:00:07]}  Ra3 {[%clk 0:00:06]} 50. Nxe5 {[%clk 0:00:05]}  dxe5 {[%clk 0:00:07]} 51. Rf7 {[%clk 0:00:05]}  Kg6 {[%clk 0:00:06]} 52. Rf8 {[%clk 0:00:06]}  Re3 {[%clk 0:00:06]} 53. Kg2 {[%clk 0:00:06]}  Re2+ {[%clk 0:00:06]} 54. Kf1 {[%clk 0:00:06]}  Ra2 {[%clk 0:00:06]} 55. Rg8+ {[%clk 0:00:06]}  Kf5 {[%clk 0:00:07]} 56. Rg5+ {[%clk 0:00:07]}  Ke6 {[%clk 0:00:07]} 57. Rxh5 {[%clk 0:00:07]}  Kd5 {[%clk 0:00:08]} 58. Rf5 {[%clk 0:00:07]}  Kd4 {[%clk 0:00:08]} 59. g4 {[%clk 0:00:07]}  Ke3 {[%clk 0:00:04]} 60. h5 {[%clk 0:00:08]}  Rh2 {[%clk 0:00:01]} 61. Kg1 {[%clk 0:00:08]} 1-0


[Site "https://www.chess.com"]

[Event "Titled Tuesday Blitz June 29 2021"]
[White "AlejandroPacheco29"]
[Black "Buffy7"]
[WhiteElo "2384"]
[BlackElo "2724"]
[Result "0-1"]
[Round "01"]
[TimeControl "180+1"]
[Date "2021.06.29"]
[WhiteClock "0:00:04"]
[BlackClock "0:01:05"]

1. e4 {[%clk 0:02:59]}  e5 {[%clk 0:02:57]} 2. Nf3 {[%clk 0:02:59]}  Nf6 {[%clk 0:02:57]} 3. Nxe5 {[%clk 0:02:58]}  d6 {[%clk 0:02:57]} 4. Nf3 {[%clk 0:02:57]}  Nxe4 {[%clk 0:02:58]} 5. Nc3 {[%clk 0:02:57]}  Nxc3 {[%clk 0:02:57]} 6. dxc3 {[%clk 0:02:58]}  Be7 {[%clk 0:02:58]} 7. Be3 {[%clk 0:02:58]}  O-O {[%clk 0:02:58]} 8. Qd2 {[%clk 0:02:58]}  Nd7 {[%clk 0:02:58]} 9. O-O-O {[%clk 0:02:56]}  c6 {[%clk 0:02:58]} 10. h4 {[%clk 0:02:54]}  Nf6 {[%clk 0:02:54]} 11. Bd3 {[%clk 0:02:52]}  Bg4 {[%clk 0:02:48]} 12. Rde1 {[%clk 0:02:48]}  d5 {[%clk 0:02:25]} 13. Ne5 {[%clk 0:02:42]}  Be6 {[%clk 0:02:24]} 14. f3 {[%clk 0:02:40]}  Qa5 {[%clk 0:02:18]} 15. a3 {[%clk 0:02:40]}  Rad8 {[%clk 0:02:14]} 16. g4 {[%clk 0:02:26]}  Ne4 {[%clk 0:02:11]} 17. Qg2 {[%clk 0:01:44]}  Nxc3 {[%clk 0:02:01]} 18. Bd2 {[%clk 0:01:21]}  d4 {[%clk 0:01:48]} 19. Nc4 {[%clk 0:00:45]}  Bxc4 {[%clk 0:01:47]} 20. Rxe7 {[%clk 0:00:45]}  Bxd3 {[%clk 0:01:44]} 21. cxd3 {[%clk 0:00:42]}  Qc5 {[%clk 0:01:44]} 22. Ree1 {[%clk 0:00:22]}  Rfe8 {[%clk 0:01:39]} 23. bxc3 {[%clk 0:00:07]}  Qxa3+ {[%clk 0:01:36]} 24. Kb1 {[%clk 0:00:05]}  Qb3+ {[%clk 0:01:24]} 25. Ka1 {[%clk 0:00:05]}  dxc3 {[%clk 0:01:20]} 26. Bc1 {[%clk 0:00:04]}  c2 {[%clk 0:01:06]} 27. Bb2 {[%clk 0:00:04]}  Qa4+ {[%clk 0:01:05]} 0-1


[Site "https://www.chess.com"]

[Event "Titled Tuesday Blitz June 29 2021"]
[White "Alexander_Zubov"]
[Black "ZefirKa"]
[WhiteElo "2999"]
[BlackElo "2466"]
[Result "1-0"]
[Round "01"]
[TimeControl "180+1"]
[Date "2021.06.29"]
[WhiteClock "0:00:30"]
[BlackClock "0:00:10"]

1. d4 {[%clk 0:02:59]}  d5 {[%clk 0:02:57]} 2. c4 {[%clk 0:02:58]}  dxc4 {[%clk 0:02:56]} 3. e4 {[%clk 0:02:58]}  Nf6 {[%clk 0:02:55]} 4. e5 {[%clk 0:02:58]}  Nd5 {[%clk 0:02:55]} 5. Bxc4 {[%clk 0:02:58]}  Nb6 {[%clk 0:02:53]} 6. Bb3 {[%clk 0:02:57]}  Nc6 {[%clk 0:02:53]} 7. Be3 {[%clk 0:02:55]}  Nb4 {[%clk 0:02:39]} 8. e6 {[%clk 0:02:37]}  Bxe6 {[%clk 0:02:30]} 9. Bxe6 {[%clk 0:02:36]}  fxe6 {[%clk 0:02:31]} 10. Nf3 {[%clk 0:02:32]}  Qd5 {[%clk 0:02:15]} 11. O-O {[%clk 0:02:26]}  O-O-O {[%clk 0:02:11]} 12. Ne5 {[%clk 0:02:14]}  g6 {[%clk 0:02:03]} 13. Nc3 {[%clk 0:02:08]}  Qa5 {[%clk 0:01:59]} 14. Nf7 {[%clk 0:02:06]}  Bg7 {[%clk 0:02:00]} 15. Qb3 {[%clk 0:01:59]}  N4d5 {[%clk 0:01:52]} 16. Rac1 {[%clk 0:01:51]}  Rhf8 {[%clk 0:01:29]} 17. Nxd8 {[%clk 0:01:48]}  Rxd8 {[%clk 0:01:30]} 18. Ne4 {[%clk 0:01:42]}  Nd7 {[%clk 0:01:16]} 19. Ng5 {[%clk 0:01:29]}  Qa6 {[%clk 0:00:45]} 20. Qc4 {[%clk 0:01:23]}  Qd6 {[%clk 0:00:39]} 21. Nf7 {[%clk 0:01:20]}  Qb6 {[%clk 0:00:38]} 22. Nxd8 {[%clk 0:01:18]}  Kxd8 {[%clk 0:00:38]} 23. Rfe1 {[%clk 0:01:12]}  Qxb2 {[%clk 0:00:29]} 24. Rb1 {[%clk 0:01:11]}  Qa3 {[%clk 0:00:23]} 25. Rxb7 {[%clk 0:01:10]}  N7b6 {[%clk 0:00:23]} 26. Qc6 {[%clk 0:00:47]}  Qxa2 {[%clk 0:00:12]} 27. Rb8+ {[%clk 0:00:31]}  Nc8 {[%clk 0:00:11]} 28. Qxe6 {[%clk 0:00:31]}  Nb6 {[%clk 0:00:10]} 29. Qxa2 {[%clk 0:00:30]} 1-0


[Site "https://www.chess.com"]

[Event "Titled Tuesday Blitz June 29 2021"]
[White "Aradhya2000"]
[Black "DianaLomaia1"]
[WhiteElo "2686"]
[BlackElo "2358"]
[Result "1-0"]
[Round "01"]
[TimeControl "180+1"]
[Date "2021.06.29"]
[WhiteClock "0:00:35"]
[BlackClock "0:00:36"]

1. d4 {[%clk 0:02:59]}  Nf6 {[%clk 0:02:59]} 2. c4 {[%clk 0:03:00]}  e6 {[%clk 0:02:58]} 3. Nf3 {[%clk 0:03:00]}  b6 {[%clk 0:02:57]} 4. a3 {[%clk 0:02:59]}  Bb7 {[%clk 0:02:57]} 5. Nc3 {[%clk 0:02:59]}  d5 {[%clk 0:02:57]} 6. cxd5 {[%clk 0:02:59]}  Nxd5 {[%clk 0:02:57]} 7. Qc2 {[%clk 0:02:59]}  Be7 {[%clk 0:02:55]} 8. e4 {[%clk 0:02:50]}  Nxc3 {[%clk 0:02:55]} 9. bxc3 {[%clk 0:02:51]}  O-O {[%clk 0:02:55]} 10. Bd3 {[%clk 0:02:51]}  c5 {[%clk 0:02:54]} 11. O-O {[%clk 0:02:50]}  h6 {[%clk 0:02:48]} 12. Rd1 {[%clk 0:02:47]}  Qc7 {[%clk 0:02:46]} 13. Qe2 {[%clk 0:02:44]}  Rd8 {[%clk 0:02:44]} 14. h4 {[%clk 0:02:35]}  Nc6 {[%clk 0:02:43]} 15. d5 {[%clk 0:02:17]}  Ne5 {[%clk 0:02:28]} 16. Bf4 {[%clk 0:02:15]}  Nxf3+ {[%clk 0:02:27]} 17. Qxf3 {[%clk 0:02:15]}  Bd6 {[%clk 0:02:25]} 18. Bxd6 {[%clk 0:01:47]}  Qxd6 {[%clk 0:02:24]} 19. c4 {[%clk 0:01:41]}  Qe5 {[%clk 0:02:11]} 20. Qe3 {[%clk 0:01:39]}  Qd4 {[%clk 0:02:04]} 21. Qxd4 {[%clk 0:01:33]}  cxd4 {[%clk 0:02:04]} 22. a4 {[%clk 0:01:20]}  a6 {[%clk 0:01:46]} 23. Rab1 {[%clk 0:01:19]}  exd5 {[%clk 0:01:34]} 24. cxd5 {[%clk 0:01:11]}  Rd6 {[%clk 0:01:31]} 25. Bc4 {[%clk 0:01:11]}  f6 {[%clk 0:01:27]} 26. Rxd4 {[%clk 0:01:06]}  Re8 {[%clk 0:01:25]} 27. f3 {[%clk 0:00:55]}  Rc8 {[%clk 0:01:22]} 28. Kf2 {[%clk 0:00:53]}  Kh7 {[%clk 0:01:19]} 29. Bd3 {[%clk 0:00:52]}  Kh8 {[%clk 0:01:12]} 30. Rdb4 {[%clk 0:00:52]}  b5 {[%clk 0:00:58]} 31. axb5 {[%clk 0:00:51]}  a5 {[%clk 0:00:58]} 32. Rc4 {[%clk 0:00:49]}  Ra8 {[%clk 0:00:53]} 33. Ra1 {[%clk 0:00:41]}  Rb6 {[%clk 0:00:52]} 34. Rca4 {[%clk 0:00:40]}  Rc8 {[%clk 0:00:45]} 35. Rxa5 {[%clk 0:00:40]}  Rc3 {[%clk 0:00:45]} 36. R5a3 {[%clk 0:00:39]}  Rc5 {[%clk 0:00:45]} 37. Ke3 {[%clk 0:00:39]}  g5 {[%clk 0:00:43]} 38. hxg5 {[%clk 0:00:37]}  hxg5 {[%clk 0:00:43]} 39. Kd4 {[%clk 0:00:37]}  Rc8 {[%clk 0:00:39]} 40. Rc3 {[%clk 0:00:35]}  Rb8 {[%clk 0:00:36]} 41. Rc7 {[%clk 0:00:35]}  Bc8 {[%clk 0:00:36]} 42. Kc5 {[%clk 0:00:35]} 1-0


[Site "https://www.chess.com"]

[Event "Titled Tuesday Blitz June 29 2021"]
[White "AryanTari"]
[Black "drd1812"]
[WhiteElo "2961"]
[BlackElo "2460"]
[Result "1-0"]
[Round "01"]
[TimeControl "180+1"]
[Date "2021.06.29"]
[WhiteClock "0:00:29"]
[BlackClock "0:00:09"]

1. b3 {[%clk 0:02:54]}  Nf6 {[%clk 0:02:54]} 2. Bb2 {[%clk 0:02:49]}  e6 {[%clk 0:02:53]} 3. g3 {[%clk 0:02:48]}  Be7 {[%clk 0:02:53]} 4. Bg2 {[%clk 0:02:49]}  O-O {[%clk 0:02:50]} 5. f4 {[%clk 0:02:49]}  d5 {[%clk 0:02:48]} 6. Nf3 {[%clk 0:02:50]}  b6 {[%clk 0:02:48]} 7. O-O {[%clk 0:02:50]}  Bb7 {[%clk 0:02:48]} 8. Ne5 {[%clk 0:02:48]}  Nfd7 {[%clk 0:02:47]} 9. c4 {[%clk 0:02:47]}  c6 {[%clk 0:02:43]} 10. d3 {[%clk 0:02:39]}  Nxe5 {[%clk 0:02:41]} 11. fxe5 {[%clk 0:02:38]}  dxc4 {[%clk 0:02:33]} 12. bxc4 {[%clk 0:02:37]}  Qc7 {[%clk 0:02:33]} 13. d4 {[%clk 0:02:21]}  b5 {[%clk 0:02:11]} 14. Nd2 {[%clk 0:02:18]}  Nd7 {[%clk 0:02:06]} 15. c5 {[%clk 0:02:18]}  Rad8 {[%clk 0:01:41]} 16. Qc2 {[%clk 0:02:12]}  f5 {[%clk 0:01:32]} 17. e4 {[%clk 0:02:09]}  g6 {[%clk 0:01:16]} 18. Rad1 {[%clk 0:02:07]}  Bc8 {[%clk 0:01:09]} 19. Qb3 {[%clk 0:02:03]}  Nb8 {[%clk 0:01:08]} 20. a4 {[%clk 0:02:00]}  bxa4 {[%clk 0:01:04]} 21. Qxa4 {[%clk 0:02:00]}  Kg7 {[%clk 0:01:04]} 22. Nc4 {[%clk 0:01:58]}  Ba6 {[%clk 0:01:02]} 23. exf5 {[%clk 0:01:43]}  gxf5 {[%clk 0:01:02]} 24. Rfe1 {[%clk 0:01:37]}  Bxc4 {[%clk 0:00:59]} 25. Qxc4 {[%clk 0:01:37]}  Qd7 {[%clk 0:00:57]} 26. Rf1 {[%clk 0:01:04]}  Bg5 {[%clk 0:00:54]} 27. Qe2 {[%clk 0:01:03]}  Qe8 {[%clk 0:00:49]} 28. Bc3 {[%clk 0:01:00]}  Qg6 {[%clk 0:00:47]} 29. Kh1 {[%clk 0:00:50]}  h5 {[%clk 0:00:39]} 30. Rb1 {[%clk 0:00:45]}  Rd7 {[%clk 0:00:39]} 31. h4 {[%clk 0:00:44]}  Bh6 {[%clk 0:00:38]} 32. Kh2 {[%clk 0:00:43]}  Rh8 {[%clk 0:00:31]} 33. Bd2 {[%clk 0:00:39]}  Bxd2 {[%clk 0:00:30]} 34. Qxd2 {[%clk 0:00:40]}  Rhd8 {[%clk 0:00:23]} 35. Rf4 {[%clk 0:00:34]}  Qh6 {[%clk 0:00:20]} 36. Qa5 {[%clk 0:00:32]}  Rxd4 {[%clk 0:00:11]} 37. Rxd4 {[%clk 0:00:30]}  Rxd4 {[%clk 0:00:11]} 38. Qc7+ {[%clk 0:00:29]}  Rd7 {[%clk 0:00:11]} 39. Qxb8 {[%clk 0:00:29]}  f4 {[%clk 0:00:09]} 40. Rb7 {[%clk 0:00:25]}  fxg3+ {[%clk 0:00:09]} 41. Kh3 {[%clk 0:00:26]}  Rxb7 {[%clk 0:00:07]} 42. Qxb7+ {[%clk 0:00:27]}  Kh8 {[%clk 0:00:08]} 43. Qa8+ {[%clk 0:00:27]}  Kg7 {[%clk 0:00:08]} 44. Qxa7+ {[%clk 0:00:27]}  Kg8 {[%clk 0:00:07]} 45. Qb8+ {[%clk 0:00:28]}  Kg7 {[%clk 0:00:07]} 46. Qc7+ {[%clk 0:00:28]}  Kg8 {[%clk 0:00:08]} 47. Qd8+ {[%clk 0:00:29]}  Kg7 {[%clk 0:00:08]} 48. Qf6+ {[%clk 0:00:28]}  Qxf6 {[%clk 0:00:08]} 49. exf6+ {[%clk 0:00:29]}  Kxf6 {[%clk 0:00:09]} 50. Bxc6 {[%clk 0:00:29]} 1-0


[Site "https://www.chess.com"]

[Event "Titled Tuesday Blitz June 29 2021"]
[White "Blitzking642"]
[Black "Jospem"]
[WhiteElo "2453"]
[BlackElo "2950"]
[Result "0-1"]
[Round "01"]
[TimeControl "180+1"]
[Date "2021.06.29"]
[WhiteClock "0:00:22"]
[BlackClock "0:01:22"]

1. e4 {[%clk 0:03:00]}  c5 {[%clk 0:02:58]} 2. Nf3 {[%clk 0:02:58]}  d6 {[%clk 0:02:58]} 3. d4 {[%clk 0:02:58]}  cxd4 {[%clk 0:02:59]} 4. Nxd4 {[%clk 0:02:59]}  Nf6 {[%clk 0:03:00]} 5. Nc3 {[%clk 0:02:59]}  a6 {[%clk 0:03:00]} 6. Be2 {[%clk 0:02:59]}  e5 {[%clk 0:03:01]} 7. Nf3 {[%clk 0:02:59]}  Be7 {[%clk 0:03:01]} 8. Bg5 {[%clk 0:02:58]}  Be6 {[%clk 0:03:01]} 9. Bxf6 {[%clk 0:02:57]}  Bxf6 {[%clk 0:03:01]} 10. O-O {[%clk 0:02:57]}  O-O {[%clk 0:02:59]} 11. Nd5 {[%clk 0:02:57]}  Nd7 {[%clk 0:02:59]} 12. Bc4 {[%clk 0:02:57]}  Qc8 {[%clk 0:02:53]} 13. Qe2 {[%clk 0:02:51]}  b5 {[%clk 0:02:48]} 14. Bb3 {[%clk 0:02:41]}  Bd8 {[%clk 0:02:48]} 15. Ne3 {[%clk 0:02:34]}  Nf6 {[%clk 0:02:35]} 16. Qd3 {[%clk 0:02:19]}  Qc6 {[%clk 0:02:00]} 17. Nd2 {[%clk 0:01:30]}  Bb6 {[%clk 0:01:52]} 18. c4 {[%clk 0:01:15]}  Bxe3 {[%clk 0:01:46]} 19. Qxe3 {[%clk 0:01:04]}  b4 {[%clk 0:01:32]} 20. f4 {[%clk 0:00:35]}  a5 {[%clk 0:01:28]} 21. fxe5 {[%clk 0:00:25]}  Ng4 {[%clk 0:01:26]} 22. Qd4 {[%clk 0:00:22]}  dxe5 {[%clk 0:01:22]} 0-1


[Site "https://www.chess.com"]

[Event "Titled Tuesday Blitz June 29 2021"]
[White "Blitzstream"]
[Black "queen_iryna"]
[WhiteElo "2697"]
[BlackElo "2363"]
[Result "1-0"]
[Round "01"]
[TimeControl "180+1"]
[Date "2021.06.29"]
[WhiteClock "0:00:15"]
[BlackClock "0:00:02"]

1. d4 {[%clk 0:03:00]}  d6 {[%clk 0:02:59]} 2. e4 {[%clk 0:03:00]}  Nf6 {[%clk 0:02:58]} 3. Nc3 {[%clk 0:03:01]}  e5 {[%clk 0:02:55]} 4. dxe5 {[%clk 0:03:00]}  dxe5 {[%clk 0:02:55]} 5. Qxd8+ {[%clk 0:03:01]}  Kxd8 {[%clk 0:02:56]} 6. f4 {[%clk 0:03:02]}  exf4 {[%clk 0:02:52]} 7. Bxf4 {[%clk 0:03:02]}  Bb4 {[%clk 0:02:45]} 8. O-O-O {[%clk 0:03:02]}  Nbd7 {[%clk 0:02:38]} 9. Nd5 {[%clk 0:02:50]}  Nxd5 {[%clk 0:02:32]} 10. exd5 {[%clk 0:02:50]}  Nf6 {[%clk 0:02:29]} 11. Nf3 {[%clk 0:02:45]}  Bf5 {[%clk 0:02:20]} 12. Bd3 {[%clk 0:02:26]}  Bxd3 {[%clk 0:02:10]} 13. Rxd3 {[%clk 0:02:27]}  Bd6 {[%clk 0:02:10]} 14. Bg5 {[%clk 0:01:57]}  Re8 {[%clk 0:02:04]} 15. Kd2 {[%clk 0:01:49]}  Kd7 {[%clk 0:02:03]} 16. Bxf6 {[%clk 0:01:48]}  gxf6 {[%clk 0:02:04]} 17. g3 {[%clk 0:01:46]}  f5 {[%clk 0:01:53]} 18. Re1 {[%clk 0:01:43]}  f4 {[%clk 0:01:52]} 19. g4 {[%clk 0:01:41]}  h6 {[%clk 0:01:45]} 20. h3 {[%clk 0:01:22]}  Rxe1 {[%clk 0:01:44]} 21. Kxe1 {[%clk 0:01:22]}  Re8+ {[%clk 0:01:44]} 22. Kd2 {[%clk 0:01:21]}  Bc5 {[%clk 0:01:35]} 23. Nd4 {[%clk 0:01:13]}  Bxd4 {[%clk 0:01:11]} 24. Rxd4 {[%clk 0:01:14]}  Re3 {[%clk 0:01:04]} 25. Rxf4 {[%clk 0:01:06]}  Rxh3 {[%clk 0:01:03]} 26. Rxf7+ {[%clk 0:01:04]}  Kd6 {[%clk 0:01:04]} 27. c4 {[%clk 0:01:03]}  Rg3 {[%clk 0:00:58]} 28. Rg7 {[%clk 0:01:00]}  c6 {[%clk 0:00:41]} 29. Rxb7 {[%clk 0:00:51]}  Rxg4 {[%clk 0:00:40]} 30. Rxa7 {[%clk 0:00:47]}  Rxc4 {[%clk 0:00:38]} 31. dxc6 {[%clk 0:00:47]}  Rxc6 {[%clk 0:00:35]} 32. Ra5 {[%clk 0:00:44]}  Kc7 {[%clk 0:00:24]} 33. Rh5 {[%clk 0:00:41]}  Kb6 {[%clk 0:00:24]} 34. Rh3 {[%clk 0:00:37]}  Kb5 {[%clk 0:00:21]} 35. Rc3 {[%clk 0:00:34]}  Rg6 {[%clk 0:00:21]} 36. Kc2 {[%clk 0:00:30]}  h5 {[%clk 0:00:21]} 37. Rh3 {[%clk 0:00:30]}  Rg5 {[%clk 0:00:20]} 38. a3 {[%clk 0:00:28]}  Ka5 {[%clk 0:00:19]} 39. Kb3 {[%clk 0:00:24]}  Kb5 {[%clk 0:00:19]} 40. Rh4 {[%clk 0:00:24]}  Rg3+ {[%clk 0:00:18]} 41. Ka2 {[%clk 0:00:24]}  Rg5 {[%clk 0:00:18]} 42. Rh2 {[%clk 0:00:20]}  Ka5 {[%clk 0:00:16]} 43. b3 {[%clk 0:00:20]}  Kb5 {[%clk 0:00:16]} 44. a4+ {[%clk 0:00:20]}  Kb4 {[%clk 0:00:16]} 45. Rh4+ {[%clk 0:00:20]}  Ka5 {[%clk 0:00:16]} 46. Ka3 {[%clk 0:00:20]}  Kb6 {[%clk 0:00:15]} 47. Rf4 {[%clk 0:00:14]}  Ka6 {[%clk 0:00:13]} 48. Rf6+ {[%clk 0:00:14]}  Kb7 {[%clk 0:00:13]} 49. Rh6 {[%clk 0:00:13]}  Rf5 {[%clk 0:00:12]} 50. Kb4 {[%clk 0:00:09]}  Rf4+ {[%clk 0:00:12]} 51. Kc3 {[%clk 0:00:09]}  h4 {[%clk 0:00:13]} 52. b4 {[%clk 0:00:05]}  Rf3+ {[%clk 0:00:14]} 53. Kc4 {[%clk 0:00:06]}  h3 {[%clk 0:00:14]} 54. a5 {[%clk 0:00:05]}  Rf4+ {[%clk 0:00:14]} 55. Kb5 {[%clk 0:00:05]}  Rf5+ {[%clk 0:00:14]} 56. Ka4 {[%clk 0:00:06]}  Rf3 {[%clk 0:00:14]} 57. Rh7+ {[%clk 0:00:06]}  Kb8 {[%clk 0:00:13]} 58. Kb5 {[%clk 0:00:06]}  Rf5+ {[%clk 0:00:12]} 59. Ka4 {[%clk 0:00:07]}  Rf3 {[%clk 0:00:13]} 60. a6 {[%clk 0:00:07]}  Rg3 {[%clk 0:00:12]} 61. Ka5 {[%clk 0:00:08]}  Ka8 {[%clk 0:00:10]} 62. b5 {[%clk 0:00:08]}  Kb8 {[%clk 0:00:10]} 63. Rh6 {[%clk 0:00:08]}  Rf3 {[%clk 0:00:09]} 64. Kb6 {[%clk 0:00:08]}  Rf8 {[%clk 0:00:08]} 65. Kc6 {[%clk 0:00:06]}  Rc8+ {[%clk 0:00:07]} 66. Kb6 {[%clk 0:00:07]}  Rf8 {[%clk 0:00:07]} 67. Rxh3 {[%clk 0:00:07]}  Rf6+ {[%clk 0:00:07]} 68. Ka5 {[%clk 0:00:07]}  Rf8 {[%clk 0:00:04]} 69. Rh7 {[%clk 0:00:07]}  Rf5 {[%clk 0:00:03]} 70. Kb6 {[%clk 0:00:08]}  Rf6+ {[%clk 0:00:04]} 71. Kc5 {[%clk 0:00:08]}  Rf5+ {[%clk 0:00:04]} 72. Kb4 {[%clk 0:00:09]}  Rf4+ {[%clk 0:00:04]} 73. Ka5 {[%clk 0:00:09]}  Rf6 {[%clk 0:00:04]} 74. Re7 {[%clk 0:00:09]}  Rh6 {[%clk 0:00:03]} 75. Kb4 {[%clk 0:00:10]}  Rh4+ {[%clk 0:00:03]} 76. Ka5 {[%clk 0:00:10]}  Rh6 {[%clk 0:00:03]} 77. b6 {[%clk 0:00:10]}  Rh5+ {[%clk 0:00:03]} 78. Kb4 {[%clk 0:00:10]}  Rh4+ {[%clk 0:00:03]} 79. Kc5 {[%clk 0:00:11]}  Rh5+ {[%clk 0:00:03]} 80. Kd6 {[%clk 0:00:12]}  Rh6+ {[%clk 0:00:03]} 81. Re6 {[%clk 0:00:12]}  Rh8 {[%clk 0:00:03]} 82. Kd7 {[%clk 0:00:13]}  Rh7+ {[%clk 0:00:03]} 83. Re7 {[%clk 0:00:13]}  Rh8 {[%clk 0:00:01]} 84. Re8+ {[%clk 0:00:14]}  Rxe8 {[%clk 0:00:02]} 85. Kxe8 {[%clk 0:00:15]} 1-0


[Site "https://www.chess.com"]

[Event "Titled Tuesday Blitz June 29 2021"]
[White "Carnivoras"]
[Black "eltrain1971"]
[WhiteElo "2645"]
[BlackElo "2337"]
[Result "1-0"]
[Round "01"]
[TimeControl "180+1"]
[Date "2021.06.29"]
[WhiteClock "0:00:05"]
[BlackClock "0:00:01"]

1. d4 {[%clk 0:02:52]}  Nf6 {[%clk 0:02:56]} 2. c4 {[%clk 0:02:52]}  e6 {[%clk 0:02:54]} 3. Nc3 {[%clk 0:02:52]}  Bb4 {[%clk 0:02:54]} 4. Qc2 {[%clk 0:02:52]}  O-O {[%clk 0:02:53]} 5. Nf3 {[%clk 0:02:51]}  d5 {[%clk 0:02:51]} 6. cxd5 {[%clk 0:02:50]}  exd5 {[%clk 0:02:44]} 7. Bg5 {[%clk 0:02:49]}  c6 {[%clk 0:02:41]} 8. e3 {[%clk 0:02:44]}  Re8 {[%clk 0:02:29]} 9. Bd3 {[%clk 0:02:35]}  h6 {[%clk 0:02:29]} 10. Bh4 {[%clk 0:02:34]}  Be6 {[%clk 0:02:24]} 11. O-O {[%clk 0:02:27]}  Nbd7 {[%clk 0:02:24]} 12. Ne5 {[%clk 0:02:25]}  Be7 {[%clk 0:02:19]} 13. f4 {[%clk 0:02:15]}  Nf8 {[%clk 0:02:09]} 14. Rf3 {[%clk 0:01:58]}  Ng4 {[%clk 0:01:55]} 15. Bxe7 {[%clk 0:01:06]}  Qxe7 {[%clk 0:01:53]} 16. h3 {[%clk 0:01:06]}  Nf6 {[%clk 0:01:45]} 17. Re1 {[%clk 0:01:06]}  c5 {[%clk 0:01:30]} 18. dxc5 {[%clk 0:00:45]}  Qxc5 {[%clk 0:01:29]} 19. Qf2 {[%clk 0:00:44]}  N8d7 {[%clk 0:01:18]} 20. Qh4 {[%clk 0:00:29]}  d4 {[%clk 0:00:57]} 21. exd4 {[%clk 0:00:19]}  Qxd4+ {[%clk 0:00:57]} 22. Qf2 {[%clk 0:00:16]}  Qxf2+ {[%clk 0:00:55]} 23. Rxf2 {[%clk 0:00:17]}  Nxe5 {[%clk 0:00:50]} 24. fxe5 {[%clk 0:00:17]}  Nd5 {[%clk 0:00:50]} 25. Nb5 {[%clk 0:00:17]}  Nb4 {[%clk 0:00:44]} 26. Bb1 {[%clk 0:00:16]}  Bxa2 {[%clk 0:00:40]} 27. Nc7 {[%clk 0:00:14]}  Bxb1 {[%clk 0:00:35]} 28. Rxb1 {[%clk 0:00:14]}  Nc6 {[%clk 0:00:33]} 29. Nxa8 {[%clk 0:00:13]}  Rxa8 {[%clk 0:00:33]} 30. Re2 {[%clk 0:00:13]}  Re8 {[%clk 0:00:33]} 31. Rbe1 {[%clk 0:00:13]}  Re6 {[%clk 0:00:33]} 32. Kf2 {[%clk 0:00:13]}  Kf8 {[%clk 0:00:33]} 33. Re4 {[%clk 0:00:12]}  Ke7 {[%clk 0:00:33]} 34. Kf3 {[%clk 0:00:12]}  h5 {[%clk 0:00:32]} 35. Kf4 {[%clk 0:00:12]}  g6 {[%clk 0:00:33]} 36. g4 {[%clk 0:00:11]}  hxg4 {[%clk 0:00:31]} 37. hxg4 {[%clk 0:00:12]}  a5 {[%clk 0:00:31]} 38. g5 {[%clk 0:00:11]}  Nb4 {[%clk 0:00:30]} 39. Rd1 {[%clk 0:00:08]}  Rc6 {[%clk 0:00:26]} 40. Red4 {[%clk 0:00:07]}  Rc2 {[%clk 0:00:15]} 41. Rd7+ {[%clk 0:00:07]}  Ke8 {[%clk 0:00:14]} 42. Rxb7 {[%clk 0:00:08]}  Rc4+ {[%clk 0:00:11]} 43. Kf3 {[%clk 0:00:07]}  Rc5 {[%clk 0:00:07]} 44. Rdd7 {[%clk 0:00:05]}  Rxe5 {[%clk 0:00:06]} 45. Rxf7 {[%clk 0:00:06]}  Rxg5 {[%clk 0:00:04]} 46. Rfe7+ {[%clk 0:00:06]}  Kf8 {[%clk 0:00:03]} 47. Rec7 {[%clk 0:00:06]}  Rf5+ {[%clk 0:00:01]} 48. Ke4 {[%clk 0:00:05]} 1-0


[Site "https://www.chess.com"]